bitfinex/quotes_ETHUSD_20250324
["timestamp","ask_amount","ask_price","bid_price","bid_amount"]
[1742859738858,5.00579834,2074.2,2074.1,4.518]
[1742859748819,0.18466834,2074.2,2074.1,4.518]
[1742859749317,9.64204,2074.3,2074.1,4.518]
[1742859749519,0.18424854,2074.2,2074.1,4.518]
[1742859749816,9.64204,2074.3,2074.1,4.518]
[1742859750039,0.18417675,2074.2,2074.1,4.518]
[1742859750487,9.64204,2074.3,2074.1,4.518]
[1742859750687,0.18417675,2074.2,2074.1,4.518]
[1742859751124,9.64204,2074.3,2074.1,4.518]
[1742859751326,0.18414085,2074.2,2074.1,4.518]
[1742859751704,9.64204,2074.3,2074.1,4.518]
[1742859751891,0.18417675,2074.2,2074.1,4.518]
[1742859752630,9.64206,2074.3,2074.1,4.518]
[1742859752815,0.18417675,2074.2,2074.1,4.518]
[1742859753216,4.82099,2074.3,2074.1,4.518]
[1742859753425,0.18421264,2074.2,2074.1,4.518]
[1742859753840,4.82099,2074.3,2074.1,4.518]
[1742859754039,0.18417675,2074.2,2074.1,4.518]
[1742859754532,0.18421264,2074.2,2074.1,4.518]
[1742859754747,9.64205,2074.3,2074.1,4.518]
[1742859754918,0.18421264,2074.2,2074.1,4.518]
[1742859755120,4.82113,2074.2,2074.1,4.518]
[1742859755428,0.18421264,2074.2,2074.1,4.518]
[1742859755738,4.82099,2074.3,2074.1,4.518]
[1742859755939,0.18421264,2074.2,2074.1,4.518]
[1742859756139,9.64206,2074.3,2074.1,4.518]
[1742859756355,5.00534264,2074.2,2074.1,4.518]
[1742859757534,0.18421264,2074.2,2074.1,4.518]
[1742859757732,9.64208,2074.3,2074.1,4.518]
[1742859757939,4.98946141,2074.2,2074.1,4.518]
[1742859758443,0.96854145,2074.2,2073.7,26.0093]
[1742859758624,4.82171,2074.0,2073.7,26.0093]
[1742859758824,4.82171,2074.0,2073.8,4.517]
[1742859759026,0.16787822,2073.9,2073.8,4.517]
[1742859759942,0.16787822,2073.9,2073.7,26.0093]
[1742859760114,0.16787822,2073.9,2073.8,4.517]
[1742859761359,0.16798592,2073.9,2073.8,4.517]
[1742859765450,4.82206,2073.8,2073.7,25.485]
[1742859765649,5.85625564,2073.8,2073.7,25.485]
[1742859765822,6.77488697,2073.8,2073.7,25.485]
[1742859772759,6.72667693,2073.8,2073.7,25.485]
[1742859773258,6.77488697,2073.8,2073.7,25.485]
[1742859773955,4.82253,2073.6,2073.5,4.517]
[1742859774158,4.82299,2073.4,2073.3,1.27692417]
[1742859774360,4.82401,2073.0,2072.8,26.0153]
[1742859774527,4.82401,2073.0,2072.9,4.517]
[1742859774730,4.82401,2073.0,2072.9,4.87134781]
[1742859774928,4.82373,2073.1,2072.9,4.87134781]
[1742859781167,0.16004068,2073.0,2072.9,4.87134781]
[1742859784968,4.82377,2073.1,2072.9,4.87134781]
[1742859785168,0.15837818,2073.0,2072.9,4.87134781]
[1742859786260,4.82353,2073.2,2072.9,4.87134781]
[1742859786461,0.15344484,2073.0,2072.9,4.87134781]
[1742859786647,4.82353,2073.2,2072.9,4.87134781]
[1742859786850,0.15344484,2073.0,2072.9,4.87134781]
[1742859787347,4.82325,2073.3,2072.9,4.87134781]
[1742859787544,0.15374747,2073.2,2073.1,0.5243]
[1742859787765,4.82306,2073.4,2073.1,0.5243]
[1742859787965,0.15257631,2073.3,2073.1,0.5243]
[1742859788746,4.97585631,2073.3,2073.1,0.5243]
[1742859788947,4.97585631,2073.3,2072.9,10.21970781]
[1742859790285,4.97585631,2073.3,2072.9,15.04374781]
[1742859790442,4.97585631,2073.3,2072.9,10.21968781]
[1742859791148,4.82347,2073.2,2072.9,5.39564781]
[1742859791391,0.15250045,2073.1,2072.9,5.39564781]
[1742859793084,0.15250045,2073.1,2072.9,10.21971781]
[1742859793468,4.8233,2073.3,2072.9,10.21971781]
[1742859793673,10.85263,2073.6,2073.1,4.82366]
[1742859793914,4.82263,2073.6,2073.2,5.39591024]
[1742859794947,0.8127,2073.7,2073.2,5.39590024]
[1742859795154,4.82253,2073.6,2073.2,5.34767]
[1742859795464,4.82253,2073.6,2073.2,10.171]
[1742859795663,4.82253,2073.6,2073.2,10.17098]
[1742859795847,4.82253,2073.6,2073.3,1.017098]
[1742859796052,4.82253,2073.6,2073.4,4.518]
[1742859796282,0.15457929,2073.5,2073.4,4.518]
[1742859796981,10.45767,2073.7,2073.4,4.518]
[1742859797476,0.15473053,2073.6,2073.4,4.518]
[1742859799253,0.15473053,2073.6,2073.5,0.5243]
[1742859799605,0.15473053,2073.6,2073.5,5.34687]
[1742859799771,6.03,2073.8,2073.5,5.34687]
[1742859799959,0.15488177,2073.7,2073.5,5.34687]
[1742859800164,6.03,2073.8,2073.6,4.82253]
[1742859800366,4.82114,2074.2,2073.7,0.5243]
[1742859800613,4.82114,2074.2,2073.8,4.82203]
[1742859800903,4.82114,2074.2,2073.9,4.518]
[1742859801410,9.64244,2074.2,2073.9,4.518]
[1742859801603,4.82114,2074.2,2073.9,4.518]
[1742859801901,9.64244,2074.2,2073.9,4.518]
[1742859802299,4.82137,2074.1,2073.9,4.518]
[1742859802463,4.82114,2074.2,2073.9,4.518]
[1742859802988,9.64244,2074.2,2073.9,4.518]
[1742859805407,4.82138,2074.1,2073.9,4.518]
[1742859805760,9.64291,2074.1,2073.9,4.518]
[1742859805965,0.969112,2074.0,2073.9,4.518]
[1742859806180,4.82138,2074.1,2073.9,4.518]
[1742859806375,4.8216,2074.0,2073.9,4.518]
[1742859809925,4.8216,2074.0,2073.7,0.36132274]
[1742859810223,4.8216,2074.0,2073.9,4.516]
[1742859810625,5.58348,2074.1,2073.9,4.516]
[1742859810786,4.8216,2074.0,2073.9,4.516]
[1742859811189,4.96792606,2074.0,2073.9,4.516]
[1742859816207,0.14632606,2074.0,2073.9,4.516]
[1742859827224,4.82116,2074.2,2073.9,4.516]
[1742859827448,0.13441748,2074.1,2073.9,4.516]
[1742859832858,4.95581748,2074.1,2073.9,4.516]
[1742859837761,4.8216,2074.0,2073.9,4.516]
[1742859838059,4.95613116,2074.0,2073.9,4.516]
[1742859838623,0.13453116,2074.0,2073.9,4.516]
[1742859838927,4.95613116,2074.0,2073.9,4.516]
[1742859839863,0.13453116,2074.0,2073.9,4.516]
[1742859843368,4.95613116,2074.0,2073.9,4.516]
[1742859843667,0.13453116,2074.0,2073.9,4.516]
[1742859851692,0.13453116,2074.0,2073.8,0.5243]
[1742859853698,0.13453116,2074.0,2073.9,4.514]
[1742859853892,4.86943004,2074.2,2073.9,4.514]
[1742859854094,0.12298237,2074.0,2073.9,4.514]
[1742859854263,4.82122,2074.2,2073.9,4.514]
[1742859854464,0.12313347,2074.1,2073.9,4.514]
[1742859855373,0.12313347,2074.1,2074.0,4.8216]
[1742859855696,3.0,2074.4,2074.0,5.3459]
[1742859855892,0.12313347,2074.1,2074.0,5.3459]
[1742859856193,3.0,2074.4,2074.0,5.3459]
[1742859856194,7.8207,2074.4,2074.0,0.5243]
[1742859856390,0.12358803,2074.1,2074.0,0.5243]
[1742859856586,4.8207,2074.4,2074.0,1.992475]
[1742859857061,4.82099,2074.3,2074.0,0.5243]
[1742859857260,0.12373911,2074.2,2074.0,0.5243]
[1742859857466,4.82099,2074.3,2074.0,0.5243]
[1742859857795,0.12327216,2074.2,2074.0,0.5243]
[1742859857965,0.12327216,2074.2,2074.1,4.514]
[1742859858165,4.86891004,2074.4,2074.1,4.514]
[1742859858382,0.12436867,2074.2,2074.1,4.514]
[1742859858783,4.8207,2074.4,2074.1,4.514]
[1742859858989,0.11804367,2074.2,2074.1,4.514]
[1742859859498,4.8207,2074.4,2074.1,4.514]
[1742859859800,0.11804367,2074.2,2074.1,4.514]
[1742859860168,4.8207,2074.4,2074.1,4.514]
[1742859860369,0.1180796,2074.2,2074.1,4.514]
[1742859860569,4.8207,2074.4,2074.1,4.514]
[1742859860794,0.1180796,2074.2,2074.1,4.514]
[1742859860982,4.8207,2074.4,2074.1,4.514]
[1742859861191,0.1180796,2074.2,2074.1,4.514]
[1742859861591,4.8207,2074.4,2074.1,4.514]
[1742859861795,0.11804367,2074.2,2074.1,4.514]
[1742859861994,4.8207,2074.4,2074.1,4.514]
[1742859862189,0.11804367,2074.2,2074.1,4.514]
[1742859862398,4.8207,2074.4,2074.1,4.514]
[1742859862599,0.11804367,2074.2,2074.1,4.514]
[1742859863306,4.82102,2074.3,2074.1,4.514]
[1742859863600,0.11804367,2074.2,2074.1,4.514]
[1742859863984,10.40477,2074.3,2074.1,4.514]
[1742859864187,0.11804367,2074.2,2074.1,4.514]
[1742859864376,5.58372,2074.3,2074.1,4.514]
[1742859864578,0.11804367,2074.2,2074.1,4.514]
[1742859864778,5.58372,2074.3,2074.1,4.514]
[1742859864978,0.11804367,2074.2,2074.1,4.514]
[1742859865178,0.7627,2074.3,2074.1,4.514]
[1742859865393,0.11804367,2074.2,2074.1,4.514]
[1742859865775,5.58376,2074.3,2074.1,4.514]
[1742859866120,0.11795387,2074.2,2074.1,4.514]
[1742859866418,5.58376,2074.3,2074.1,4.514]
[1742859866578,0.11795387,2074.2,2074.1,4.514]
[1742859866780,5.58376,2074.3,2074.1,4.514]
[1742859867090,0.11795387,2074.2,2074.1,4.514]
[1742859867291,5.58376,2074.3,2074.1,4.514]
[1742859867499,0.11795387,2074.2,2074.1,4.514]
[1742859867701,5.58376,2074.3,2074.1,4.514]
[1742859867900,0.11795387,2074.2,2074.1,4.514]
[1742859868182,5.58376,2074.3,2074.1,4.514]
[1742859868610,0.11795387,2074.2,2074.1,4.514]
[1742859868985,4.82113,2074.2,2074.1,4.514]
[1742859869184,4.93908387,2074.2,2074.1,4.514]
[1742859869812,0.11795387,2074.2,2074.1,4.514]
[1742859870112,10.40483,2074.3,2074.1,4.514]
[1742859870314,0.10712553,2074.2,2074.1,4.514]
[1742859870610,10.40483,2074.3,2074.1,4.514]
[1742859870810,0.10712553,2074.2,2074.1,4.514]
[1742859871409,4.82113,2074.2,2074.1,4.514]
[1742859871613,0.10712553,2074.2,2074.1,4.514]
[1742859872001,10.40484,2074.3,2074.1,4.514]
[1742859872198,0.10716145,2074.2,2074.1,4.514]
[1742859872435,5.58376,2074.3,2074.1,4.514]
[1742859872726,0.10716145,2074.2,2074.1,4.514]
[1742859872911,0.10716145,2074.2,2074.1,4.9654]
[1742859873215,4.82085,2074.4,2074.1,4.9654]
[1742859873390,0.10759249,2074.2,2074.1,4.514]
[1742859873588,9.6417,2074.4,2074.1,4.514]
[1742859873816,0.10786184,2074.2,2074.1,4.514]
[1742859874018,9.6417,2074.4,2074.1,4.514]
[1742859874221,0.10786184,2074.2,2074.1,4.514]
[1742859874700,9.6417,2074.4,2074.1,4.514]
[1742859874920,0.1080129,2074.3,2074.1,4.514]
[1742859877850,4.9289329,2074.3,2074.1,4.514]
[1742859884538,0.1080129,2074.3,2074.1,4.514]
[1742859884715,0.1080129,2074.3,2074.1,5.971872]
[1742859884922,0.7918,2074.9,2074.4,5.3449]
[1742859885122,0.09189327,2074.8,2074.5,0.04820062]
[1742859885320,4.81928,2075.0,2074.7,0.5243]
[1742859885516,11.64091,2075.1,2074.7,0.5243]
[1742859885848,11.64038,2075.3,2074.7,5.39223553]
[1742859886039,11.64038,2075.3,2074.7,10.21208553]
[1742859886236,11.64038,2075.3,2074.8,4.81971]
[1742859886436,3.0,2075.2,2074.8,4.81971]
[1742859886751,4.81882,2075.2,2074.7,5.39245247]
[1742859886950,4.81882,2075.2,2074.7,5.34426]
[1742859887136,4.81882,2075.2,2074.7,5.3924525]
[1742859887448,4.81908,2075.1,2074.7,0.5243]
[1742859889143,9.63783,2075.2,2074.7,5.34427]
[1742859889346,9.63776,2075.2,2074.7,5.34427]
[1742859889549,4.8191,2075.1,2074.7,0.5243]
[1742859889937,4.81888,2075.2,2074.7,0.5243]
[1742859890139,4.81888,2075.2,2074.7,5.34413]
[1742859890445,4.81888,2075.2,2074.8,0.04819257]
[1742859891234,13.286253,2075.3,2074.8,0.40329366]
[1742859891430,13.286253,2075.3,2074.8,4.86791257]
[1742859891637,4.81889,2075.2,2074.7,5.3441]
[1742859891839,4.81889,2075.2,2074.8,0.04819255]
[1742859892343,9.63788,2075.2,2074.7,6.83427099]
[1742859892641,9.68609004,2075.2,2074.7,6.83427099]
[1742859892839,9.6379,2075.2,2074.7,6.83427099]
[1742859893162,4.81907,2075.1,2074.7,2.01447099]
[1742859893535,4.81895,2075.2,2074.7,6.83440099]
[1742859893734,4.81905,2075.1,2074.7,2.01447099]
[1742859894561,4.81905,2075.1,2074.7,2.38071648]
[1742859896161,4.81895,2075.2,2074.7,7.20060648]
[1742859896535,4.90899606,2075.2,2074.7,7.20060648]
[1742859897874,4.81904,2075.1,2074.7,2.38071648]
[1742859898060,4.90899606,2075.2,2074.7,2.38071648]
[1742859898261,4.81895,2075.2,2074.7,2.38071648]
[1742859898462,4.90899606,2075.2,2074.7,2.38071648]
[1742859898651,4.90899606,2075.2,2074.7,7.20068648]
[1742859899277,9.72797606,2075.2,2074.7,2.38071648]
[1742859900176,9.72791606,2075.2,2074.7,7.20067648]
[1742859900377,9.72791606,2075.2,2074.7,2.38071648]
[1742859900378,9.72796606,2075.2,2074.7,2.38071648]
[1742859900755,0.80910118,2075.2,2074.7,0.89054549]
[1742859901062,10.43674004,2075.1,2074.8,4.511]
[1742859901264,10.38853,2075.1,2074.8,4.511]
[1742859901470,5.53794512,2075.2,2074.8,5.0353]
[1742859901768,5.62809877,2075.2,2074.8,5.0353]
[1742859902177,10.44706877,2075.2,2074.8,5.0353]
[1742859902344,5.62809877,2075.2,2074.8,5.0353]
[1742859903243,4.90904365,2075.2,2074.8,5.0353]
[1742859903446,4.81905,2075.1,2074.8,5.0353]
[1742859903652,4.81905,2075.1,2074.6,35.11809]
[1742859903653,0.79821004,2075.0,2074.6,25.478]
[1742859903875,0.79821004,2075.0,2074.7,4.511]
[1742859904055,4.81974,2074.8,2074.6,25.478]
[1742859904255,6.10015404,2074.7,2074.6,29.988]
[1742859904456,6.10015404,2074.7,2074.6,25.478]
[1742859904787,4.81974,2074.8,2074.6,25.478]
[1742859904958,10.38922,2074.9,2074.6,25.478]
[1742859905285,6.03,2075.0,2074.6,30.29818]
[1742859905448,6.03,2075.0,2074.7,0.5243]
[1742859906100,6.03,2075.0,2074.7,5.34426]
[1742859906600,6.03,2075.0,2074.7,0.5243]
[1742859907984,6.03,2075.0,2074.7,5.34426]
[1742859908685,6.03,2075.0,2074.7,5.34406]
[1742859908885,6.03,2075.0,2074.8,4.86791286]
[1742859909787,6.03,2075.0,2074.7,5.34423]
[1742859909990,5.5687,2075.3,2074.8,5.40223517]
[1742859910365,5.61691004,2075.3,2074.8,5.354043]
[1742859911298,5.5687,2075.3,2074.8,5.354043]
[1742859911690,4.8187,2075.3,2074.8,5.354043]
[1742859911856,7.81841,2075.4,2074.9,0.5243]
[1742859912056,4.81866,2075.3,2075.0,4.51]
[1742859913697,7.81841,2075.4,2075.0,4.51]
[1742859914264,0.04821004,2075.4,2075.0,10.82427205]
[1742859914460,6.8497,2075.5,2075.0,6.00506205]
[1742859914681,6.89791004,2075.5,2075.0,10.82425205]
[1742859914991,11.71602004,2075.5,2075.0,10.82425205]
[1742859915198,4.81802,2075.6,2075.1,0.5243]
[1742859915502,4.86623004,2075.6,2075.1,5.34333]
[1742859916185,9.68430004,2075.6,2075.1,0.5243]
[1742859916498,9.68430004,2075.6,2075.1,0.88424441]
[1742859916668,9.68430004,2075.6,2075.1,1.41866741]
[1742859917112,4.86623004,2075.6,2075.1,6.23764741]
[1742859917266,4.81788,2075.6,2075.1,1.41866741]
[1742859917469,4.81788,2075.6,2075.1,6.23763741]
[1742859918100,4.81788,2075.6,2075.2,0.5243]
[1742859920303,4.81788,2075.6,2075.2,2.01936205]
[1742859921012,9.63595,2075.6,2075.2,2.01936205]
[1742859921172,4.81788,2075.6,2075.2,2.01936205]
[1742859921480,4.86609004,2075.6,2075.2,2.01936205]
[1742859921670,4.81821,2075.5,2075.1,0.35994441]
[1742859921869,4.81821,2075.5,2075.0,10.80842845]
[1742859922104,4.81821,2075.5,2075.0,9.85353]
[1742859922398,4.81821,2075.5,2075.0,14.67267]
[1742859922875,4.81798,2075.6,2075.2,0.5243]
[1742859923074,4.81798,2075.6,2075.2,1.991547]
[1742859923570,4.8182,2075.5,2075.2,1.991547]
[1742859923804,4.8182,2075.5,2075.2,0.5243]
[1742859924371,4.86619004,2075.6,2075.2,0.5243]
[1742859925102,4.81812,2075.5,2075.2,0.5243]
[1742859926094,9.6364,2075.5,2075.1,0.36814431]
[1742859926409,4.81836,2075.4,2075.0,0.5243]
[1742859926596,4.81836,2075.4,2075.1,4.509]
[1742859926974,4.81814,2075.5,2075.1,4.509]
[1742859927604,9.63643,2075.5,2075.1,4.509]
[1742859927805,4.81837,2075.4,2075.1,4.509]
[1742859928108,4.81836,2075.4,2075.1,4.509]
[1742859928872,4.81814,2075.5,2075.1,4.87536453]
[1742859928873,4.8182,2075.5,2075.1,4.87536453]
[1742859929707,5.62912,2075.6,2075.1,4.87536453]
[1742859930004,10.44717,2075.6,2075.1,9.69434453]
[1742859931014,4.81815,2075.5,2075.1,4.87536453]
[1742859931194,5.07800785,2075.5,2075.1,4.87536453]
[1742859931604,5.12621789,2075.5,2075.1,4.87536453]
[1742859932399,4.81835,2075.4,2075.1,4.87536453]
[1742859932579,5.08000478,2075.4,2075.1,4.87536453]
[1742859933718,0.26165478,2075.4,2075.1,4.87536453]
[1742859936901,5.08002478,2075.4,2075.1,4.87536453]
[1742859937593,0.26165478,2075.4,2075.1,4.87536453]
[1742859939620,4.81791,2075.6,2075.3,0.5243]
[1742859940224,9.63596,2075.6,2075.3,0.5243]
[1742859940955,4.81813,2075.5,2075.1,4.87536453]
[1742859941162,4.86634004,2075.5,2075.1,5.39966453]
[1742859941319,4.81813,2075.5,2075.1,5.39966453]
[1742859941515,4.81813,2075.5,2075.2,1.50379945]
[1742859941722,4.86621004,2075.6,2075.1,10.21868453]
[1742859942027,4.818,2075.6,2075.1,10.21868453]
[1742859944265,9.63609,2075.6,2075.1,10.21868453]
[1742859944566,4.81811,2075.5,2075.1,10.21868453]
[1742859945265,4.81811,2075.5,2075.1,5.39966453]
[1742859945428,4.81835,2075.4,2075.1,5.39966453]
[1742859946158,0.26246279,2075.3,2075.1,5.39966453]
[1742859951577,0.23953614,2075.2,2075.1,5.39966453]
[1742859951919,10.4391,2075.5,2075.1,5.39966453]
[1742859952123,0.23982076,2075.4,2075.1,5.39966453]
[1742859953342,5.05818076,2075.4,2075.1,5.39966453]
[1742859953728,5.03818076,2075.4,2075.1,5.39966453]
[1742859955167,0.21982076,2075.4,2075.1,5.39966453]
[1742859957159,5.03817076,2075.4,2075.1,5.39966453]
[1742859957359,0.21982076,2075.4,2075.1,5.39966453]
[1742859963380,5.03820076,2075.4,2075.1,5.39966453]
[1742859964676,0.21982076,2075.4,2075.1,5.39966453]
[1742859965082,0.21982076,2075.4,2075.1,10.26686043]
[1742859965249,0.21982076,2075.4,2075.1,10.21867453]
[1742859965450,4.81797,2075.6,2075.2,0.04818263]
[1742859965752,4.81797,2075.6,2075.1,10.21867453]
[1742859965970,0.21577231,2075.5,2075.1,10.21867453]
[1742859966278,0.21577231,2075.5,2075.2,1.50379245]
[1742859970197,5.03388231,2075.5,2075.2,1.50379245]
[1742859971735,4.81836,2075.4,2075.1,5.39966453]
[1742859971880,4.86657004,2075.4,2075.1,5.39966453]
[1742859972077,0.21504779,2075.3,2075.1,5.39966453]
[1742859972479,0.21504779,2075.3,2075.2,4.508]
[1742859973852,4.81825,2075.5,2075.2,4.508]
[1742859974048,0.21504779,2075.3,2075.2,4.508]
[1742859974283,5.58145,2075.7,2075.3,0.5243]
[1742859974479,7.81765,2075.7,2075.3,0.5243]
[1742859976281,0.21561007,2075.6,2075.3,0.5243]
[1742859976482,0.21561007,2075.6,2075.3,0.57248106]
[1742859976786,0.21561007,2075.6,2075.4,0.98991511]
[1742859979812,5.03350007,2075.6,2075.4,0.98991511]
[1742859981219,0.21561007,2075.6,2075.4,0.98991511]
[1742859982418,0.7638,2075.9,2075.5,4.81811]
[1742859982596,0.21600928,2075.8,2075.6,1.03956994]
[1742859982921,0.21600928,2075.8,2075.7,4.507]
[1742859983918,9.63411,2076.0,2075.7,4.507]
[1742859984221,4.86520004,2076.0,2075.7,4.507]
[1742859984417,0.21615153,2075.9,2075.7,4.507]
[1742859984785,5.03352153,2075.9,2075.7,4.507]
[1742859985208,0.21615153,2075.9,2075.7,4.507]
[1742859985415,0.21615153,2075.9,2075.7,5.49691511]
[1742859986738,0.21615153,2075.9,2075.7,5.85914673]
[1742859988091,5.03335153,2075.9,2075.7,5.85914673]
[1742859988291,0.21615153,2075.9,2075.7,5.85914673]
[1742859989491,0.21615153,2075.9,2075.8,0.5243]
[1742859989691,0.21615153,2075.9,2075.8,6.42945172]
[1742859989925,10.8463,2076.3,2075.8,6.42945172]
[1742859990127,0.21802978,2075.9,2075.8,6.42945172]
[1742859990324,10.8463,2076.3,2075.8,6.42934172]
[1742859990538,0.21867216,2075.9,2075.8,6.42934172]
[1742859990707,6.03,2076.3,2075.8,11.24666172]
[1742859990894,6.03,2076.3,2075.9,5.80698511]
[1742859991309,0.21850798,2076.2,2075.9,5.80698511]
[1742859991825,0.21836581,2076.1,2075.9,5.80698511]
[1742859992013,0.21836581,2076.1,2075.9,0.98991511]
[1742859992217,0.21836581,2076.1,2075.9,5.80707511]
[1742859992423,10.84626,2076.3,2076.0,0.63313751]
[1742859992594,0.21850798,2076.2,2076.0,0.63313751]
[1742859992795,10.84626,2076.3,2076.0,0.63313751]
[1742859992993,0.21857558,2076.2,2076.0,0.63313751]
[1742859993193,4.81651,2076.2,2076.0,0.63313751]
[1742859993397,0.21839961,2076.1,2075.8,0.5243]
[1742859993627,0.21839961,2076.1,2075.8,5.34171]
[1742859993829,0.21839961,2076.1,2075.8,0.5243]
[1742859994326,0.21839961,2076.1,2075.8,5.34169]
[1742859994499,0.21839961,2076.1,2075.8,10.15895]
[1742859994701,10.84633,2076.3,2075.9,1.50281816]
[1742859994935,0.21829124,2076.0,2075.9,1.50281816]
[1742859995326,4.81633,2076.3,2075.9,1.50281816]
[1742859995802,0.21857558,2076.2,2075.9,1.50281816]
[1742859996002,4.81633,2076.3,2075.9,1.50281816]
[1742859996241,0.21857558,2076.2,2075.9,1.50281816]
[1742859996623,4.81633,2076.3,2075.9,6.31999816]
[1742859996827,0.21857558,2076.2,2075.9,1.50281816]
[1742859997124,4.81633,2076.3,2075.9,1.50281816]
[1742859997299,0.21843342,2076.1,2075.9,1.50281816]
[1742859997500,4.81633,2076.3,2075.9,1.50281816]
[1742859997711,0.21829124,2076.0,2075.9,1.50281816]
[1742859997911,4.81633,2076.3,2075.9,1.50281816]
[1742859998134,0.21835885,2076.0,2075.8,5.34155]
[1742859998334,4.81633,2076.3,2075.8,5.34155]
[1742859998623,4.8166,2076.2,2075.8,0.5243]
[1742859998831,0.2210909,2076.1,2075.8,0.5243]
[1742859999026,0.26930094,2076.1,2075.7,0.36223162]
[1742859999328,4.81686,2076.1,2075.8,4.505]
[1742859999527,5.83322604,2076.1,2075.8,4.505]
[1742859999731,0.22081352,2076.0,2075.8,4.505]
[1742860000234,0.22081352,2076.0,2075.9,5.34148]
[1742860000729,4.86454004,2076.3,2075.9,0.5243]
[1742860000935,0.22020221,2076.0,2075.8,4.505]
[1742860001110,4.81679,2076.1,2075.8,4.505]
[1742860001306,0.22006002,2075.9,2075.8,4.505]
[1742860001626,0.2212064,2075.9,2075.8,4.505]
[1742860001798,4.86500004,2076.1,2075.8,4.505]
[1742860001999,0.22134859,2076.0,2075.8,4.505]
[1742860002600,4.81672,2076.1,2075.8,4.505]
[1742860002923,0.22134859,2076.0,2075.8,4.505]
[1742860011940,5.03837859,2076.0,2075.8,4.505]
[1742860012141,4.81741,2075.8,2075.7,0.37012347]
[1742860012437,5.03840658,2075.8,2075.7,4.505]
[1742860014539,5.03840658,2075.8,2075.7,4.86894564]
[1742860015553,0.22099658,2075.8,2075.7,4.86894564]
[1742860016116,10.40937,2076.0,2075.7,4.86894564]
[1742860016324,0.19987007,2075.8,2075.7,4.86894564]
[1742860016525,4.8172,2075.9,2075.7,4.86894564]
[1742860016738,0.19987007,2075.8,2075.7,4.86894564]
[1742860018818,5.59228,2076.0,2075.7,4.86894564]
[1742860019020,0.20001227,2075.9,2075.7,5.39324564]
[1742860019221,4.86496004,2076.1,2075.7,5.39324564]
[1742860019436,0.20015447,2076.0,2075.7,5.39324564]
[1742860019833,0.20015447,2076.0,2075.7,10.21080564]
[1742860020028,0.20015447,2076.0,2075.7,5.39324564]
[1742860020251,0.7753,2075.9,2075.7,4.86894564]
[1742860020454,0.19987007,2075.8,2075.7,4.86894564]
[1742860020825,5.01728007,2075.8,2075.7,4.86894564]
[1742860021943,5.06549011,2075.8,2075.7,4.86894564]
[1742860022246,5.01728007,2075.8,2075.7,4.86894564]
[1742860022443,4.81767,2075.7,2075.4,25.9883]
[1742860022624,5.06520767,2075.6,2075.5,4.505]
[1742860023733,5.84050767,2075.6,2075.5,4.505]
[1742860023935,8.09716474,2075.6,2075.5,4.505]
[1742860024961,4.81811,2075.5,2075.4,25.464]
[1742860025257,5.80587376,2075.5,2075.4,25.464]
[1742860027047,4.81935,2075.0,2074.8,1.47409502]
[1742860027227,4.81935,2075.0,2074.9,4.505]
[1742860028260,4.86726004,2075.1,2074.6,26.35543981]
[1742860028261,4.81965,2074.9,2074.6,26.35543981]
[1742860028460,0.04821004,2075.1,2074.6,26.35543981]
[1742860028461,4.81929,2075.0,2074.7,4.505]
[1742860028660,4.81964,2074.9,2074.6,25.83113981]
[1742860028858,4.81964,2074.9,2074.7,4.505]
[1742860030833,4.81929,2075.0,2074.7,4.505]
[1742860031555,9.63874,2075.0,2074.7,4.505]
[1742860031752,4.81929,2075.0,2074.7,4.505]
[1742860031936,9.63874,2075.0,2074.7,4.505]
[1742860032159,4.81951,2074.9,2074.7,4.505]
[1742860034567,4.81997,2074.7,2074.6,25.466]
[1742860035031,4.86818004,2074.7,2074.6,25.466]
[1742860036248,5.06010307,2074.7,2074.6,25.466]
[1742860037143,5.85300307,2074.7,2074.6,25.466]
[1742860037332,5.80479303,2074.7,2074.6,25.466]
[1742860037532,8.04908443,2074.7,2074.6,25.466]
[1742860039065,4.82067,2074.4,2074.3,4.506]
[1742860039450,5.01216567,2074.4,2074.3,4.506]
[1742860042570,5.06037571,2074.4,2074.3,4.506]
[1742860043183,5.01216567,2074.4,2074.3,4.506]
[1742860044287,5.06037571,2074.4,2074.3,4.506]
[1742860044590,5.01216567,2074.4,2074.3,4.506]
[1742860044755,0.19149567,2074.4,2074.3,4.506]
[1742860046687,5.01216567,2074.4,2074.3,4.506]
[1742860046894,5.06037571,2074.4,2074.3,4.506]
[1742860048896,0.23970571,2074.4,2074.3,4.506]
[1742860049099,0.19149567,2074.4,2074.3,10.33846596]
[1742860049477,6.03,2074.7,2074.3,15.15936596]
[1742860049671,0.15360579,2074.4,2074.3,9.8512]
[1742860049887,10.84998,2074.7,2074.3,9.8512]
[1742860050084,0.15360579,2074.4,2074.3,9.8512]
[1742860050288,10.84998,2074.7,2074.3,9.8512]
[1742860050501,0.15360579,2074.4,2074.3,9.8512]
[1742860050703,10.84998,2074.7,2074.3,9.8512]
[1742860050704,4.81998,2074.7,2074.3,9.8512]
[1742860050891,0.15360579,2074.4,2074.3,14.67198]
[1742860051068,4.81998,2074.7,2074.3,14.67198]
[1742860051268,0.15389071,2074.6,2074.3,14.67198]
[1742860051903,0.15389071,2074.6,2074.3,9.85108]
[1742860061840,0.15389071,2074.6,2074.4,4.82045]
[1742860061977,0.15389071,2074.6,2074.5,5.34473]
[1742860062181,6.03,2074.9,2074.5,5.34473]
[1742860062488,9.63875,2075.0,2074.5,5.34464]
[1742860062691,0.15602046,2074.8,2074.5,5.34464]
[1742860062891,4.86780004,2074.9,2074.5,5.34464]
[1742860063117,0.15587804,2074.7,2074.5,5.34464]
[1742860063615,4.86780004,2074.9,2074.5,5.34464]
[1742860064110,4.97588046,2074.8,2074.5,0.5243]
[1742860067720,5.0240905,2074.8,2074.5,0.5243]